lending/lending_fUSD_20250210
["ID","MTS","AMOUNT","RATE_DAILY","PERIOD"]
[352670666,1739224257555,-1822.7,0.00011369,2]
[352670667,1739224257565,-517.86,0.00011369,2]
[352670668,1739224257574,-2142.93,0.00011369,2]
[352670669,1739224257584,-605.12,0.00011369,2]
[352670670,1739224257594,-1213.49,0.00011369,2]
[352670671,1739224257603,-1360.95,0.00011369,2]
[352670672,1739224257612,-500.0,0.00011369,2]
[352670673,1739224257622,-1311.97,0.00011369,2]
[352670674,1739224257632,-1666.23,0.00011369,2]
[352670675,1739224257641,-1092.68,0.00011369,2]
[352670676,1739224257652,-1361.38,0.00011369,2]
[352670677,1739224257661,-1019.17,0.00011369,2]
[352670678,1739224257671,-1625.8,0.00011369,2]
[352670679,1739224257680,-1036.68,0.00011369,2]
[352670680,1739224257689,-206.0,0.0001139,2]
[352670681,1739224257699,-150.0,0.0001139,2]
[352670682,1739224257707,-150.0,0.00011402,2]
[352670683,1739224257719,-161.80849203,0.00011406,2]
[352670684,1739224257728,-500.0,0.0001141,2]
[352670685,1739224257738,-500.0,0.0001141,2]
[352670686,1739224257748,-787.18,0.0001141,2]
[352670687,1739224257757,-1470.52,0.0001141,2]
[352670688,1739224257766,-1529.6,0.0001141,2]
[352670689,1739224257776,-1600.09,0.0001141,2]
[352670690,1739224257784,-1272.17,0.0001141,2]
[352670691,1739224257795,-1267.14,0.0001141,2]
[352670692,1739224257806,-4013.57,0.0001141,2]
[352670693,1739224257815,-5343.57,0.0001141,2]
[352670694,1739224257824,-1368.23,0.0001141,2]
[352670695,1739224257833,-1082.65,0.0001141,2]
[352670696,1739224257843,-1006.39,0.0001141,2]
[352670697,1739224257852,-1788.33,0.0001141,2]
[352670698,1739224257861,-500.0,0.0001141,2]
[352670699,1739224257870,-839.95,0.0001141,2]
[352670700,1739224257880,-1458.05,0.0001141,2]
[352670701,1739224257889,-1681.0,0.0001141,2]
[352670702,1739224257899,-1359.46,0.0001141,2]
[352670703,1739224257908,-1298.48,0.0001141,2]
[352670704,1739224257917,-500.0,0.0001141,2]
[352670705,1739224257928,-1548.82,0.0001141,2]
[352670706,1739224257936,-1866.56,0.0001141,2]
[352670707,1739224257946,-150.0,0.0001143,2]
[352670708,1739224257955,-150.0,0.00011464,2]
[352670709,1739224257964,-150.0,0.00011473,2]
[352670710,1739224257973,-20033.3892261,0.000115,2]
[352670711,1739224257982,-978.8,0.000115,2]
[352670712,1739224257991,-367.0,0.000115,2]
[352670713,1739224258001,-746.0,0.000115,2]
[352670714,1739224258010,-231.0,0.000115,2]
[352670715,1739224258020,-500.0,0.00011506,2]
[352670716,1739224258029,-500.0,0.00011506,2]
[352670717,1739224258038,-500.0,0.00011506,2]
[352670718,1739224258047,-500.0,0.00011506,2]
[352670719,1739224258056,-1200.0,0.00011506,2]
[352670720,1739224258065,-500.0,0.00011506,2]
[352670721,1739224258074,-607.89,0.00011506,2]
[352670722,1739224258083,-500.0,0.00011506,2]
[352670723,1739224258092,-500.0,0.00011506,2]
[352670724,1739224258101,-685.02,0.00011506,2]
[352670725,1739224258110,-571.4,0.00011506,2]
[352670726,1739224258119,-500.0,0.00011506,2]
[352670727,1739224258129,-500.0,0.00011506,2]
[352670728,1739224258141,-545.72,0.00011506,2]
[352670729,1739224258154,-500.0,0.00011506,2]
[352670730,1739224258165,-500.0,0.00011506,2]
[352670731,1739224258177,-664.53,0.00011506,2]
[352670732,1739224258187,-655.36,0.00011506,2]
[352670733,1739224258198,-500.0,0.00011506,2]
[352670734,1739224258209,-500.0,0.00011506,2]
[352670735,1739224258222,-524.27,0.00011506,2]
[352670736,1739224258233,-500.0,0.00011506,2]
[352670737,1739224258244,-552.7,0.00011506,2]
[352670738,1739224258256,-500.0,0.00011506,2]
[352670739,1739224258268,-500.0,0.00011506,2]
[352670740,1739224258279,-529.01,0.00011506,2]
[352670741,1739224258290,-500.0,0.00011506,2]
[352670742,1739224258301,-500.0,0.00011506,2]
[352670743,1739224258311,-906.23,0.00011506,2]
[352670744,1739224258321,-500.0,0.00011506,2]
[352670745,1739224258331,-500.0,0.00011506,2]
[352670746,1739224258343,-382.18702971,0.00011506,2]
[352670747,1739224258355,-500.0,0.00011506,2]
[352670748,1739224258366,-933.85,0.00011506,2]
[352670749,1739224258377,-500.0,0.00011506,2]
[352670750,1739224258389,-500.0,0.00011506,2]
[352670751,1739224258400,-619.25,0.00011506,2]
[352670752,1739224258412,-1379.65,0.00011506,2]
[352670753,1739224258425,-738.42,0.00011506,2]
[352670754,1739224258436,-820.5,0.00011506,2]
[352670755,1739224258448,-500.0,0.00011506,2]
[352670756,1739224258459,-500.0,0.00011506,2]
[352670757,1739224258471,-845.33,0.00011506,2]
[352670758,1739224258483,-648.18,0.00011506,2]
[352670759,1739224258495,-570.75,0.00011506,2]
[352670760,1739224258506,-461.76345749,0.00011506,2]
[352670761,1739224258517,-648.09,0.00011506,2]
[352670762,1739224258529,-974.59,0.00011506,2]
[352670763,1739224258540,-1066.42,0.00011506,2]
[352670764,1739224258551,-574.64,0.00011506,2]
[352670765,1739224258563,-572.31,0.00011506,2]
[352670766,1739224258575,-730.69,0.00011506,2]
[352670767,1739224258587,-750.48,0.00011506,2]
[352670768,1739224258598,-902.86,0.00011506,2]
[352670769,1739224258609,-562.97,0.00011506,2]
[352670770,1739224258620,-500.0,0.00011506,2]
[352670771,1739224258631,-500.0,0.00011506,2]
[352670772,1739224258641,-500.0,0.00011506,2]
[352670773,1739224258654,-672.07,0.00011506,2]
[352670774,1739224258665,-968.65,0.00011506,2]
[352670775,1739224258678,-500.0,0.00011506,2]
[352670776,1739224258691,-534.26,0.00011506,2]
[352670777,1739224258702,-525.84,0.00011506,2]
[352670778,1739224258712,-563.53,0.00011506,2]
[352670779,1739224258722,-950.07,0.00011506,2]
[352670780,1739224258732,-500.0,0.00011506,2]
[352670781,1739224258743,-500.0,0.00011506,2]
[352670782,1739224258753,-500.0,0.00011506,2]
[352670783,1739224258765,-836.47,0.00011506,2]
[352670784,1739224258777,-500.0,0.00011506,2]
[352670785,1739224258788,-677.01,0.00011506,2]
[352670786,1739224258798,-500.0,0.00011506,2]
[352670787,1739224258812,-646.8,0.00011506,2]
[352670788,1739224258822,-500.0,0.00011506,2]
[352670789,1739224258832,-739.06,0.00011506,2]
[352670790,1739224258843,-500.0,0.00011506,2]
[352670791,1739224258854,-500.0,0.00011506,2]
[352670792,1739224258864,-740.36,0.00011506,2]
[352670793,1739224258874,-569.35,0.00011506,2]
[352670794,1739224258886,-773.17,0.00011506,2]
[352670795,1739224258896,-950.16,0.00011506,2]
[352670796,1739224258908,-885.56,0.00011506,2]
[352670797,1739224258922,-631.63,0.00011506,2]
[352670798,1739224258932,-500.0,0.00011506,2]
[352670799,1739224258943,-693.07,0.00011506,2]
[352670800,1739224258953,-500.0,0.00011506,2]
[352670801,1739224258963,-772.7,0.00011506,2]
[352670802,1739224258974,-500.0,0.00011506,2]
[352670803,1739224258984,-500.0,0.00011506,2]
[352670804,1739224258995,-948.02,0.00011506,2]
[352670805,1739224259006,-500.0,0.00011506,2]
[352670806,1739224259016,-500.0,0.00011506,2]
[352670807,1739224259027,-500.0,0.00011506,2]
[352670808,1739224259037,-860.622681,0.00011506,2]
[352670809,1739224259048,-871.49,0.00011506,2]
[352670810,1739224259058,-959.6,0.00011506,2]
[352670811,1739224259069,-1191.5,0.00011506,2]
[352670812,1739224259079,-595.94,0.00011506,2]
[352670813,1739224259090,-1101.27,0.00011506,2]
[352670814,1739224259100,-500.0,0.00011506,2]
[352670815,1739224259111,-1025.12,0.00011506,2]
[352670816,1739224259121,-752.46,0.00011506,2]
[352670817,1739224259132,-633.32,0.00011506,2]
[352670818,1739224259142,-611.12,0.00011506,2]
[352670819,1739224259153,-794.5,0.00011506,2]
[352670820,1739224259163,-91.64756359,0.00011506,2]
[352670821,1739224259180,-816.92243641,0.00011506,2]
[352670822,1739224259191,-835.496154,0.00011506,2]
[352670823,1739224259201,-503.87,0.00011506,2]
[352670824,1739224259211,-500.0,0.00011506,2]
[352670825,1739224259221,-500.0,0.00011506,2]
[352670826,1739224259232,-628.84,0.00011506,2]
[352670827,1739224259244,-653.62,0.00011506,2]
[352670828,1739224259254,-531.03,0.00011506,2]
[352670829,1739224259265,-1090.9,0.00011506,2]
[352670830,1739224259275,-500.0,0.00011506,2]
[352670831,1739224259285,-755.01,0.00011506,2]
[352670832,1739224259295,-500.0,0.00011506,2]
[352670833,1739224259306,-573.97,0.00011506,2]
[352670834,1739224259316,-484.25341991,0.00011506,2]
[352670835,1739224259327,-734.5,0.00011506,2]
[352670836,1739224259337,-896.89,0.00011506,2]
[352670837,1739224259348,-500.0,0.00011506,2]
[352670838,1739224259359,-1002.9,0.00011506,2]
[352670839,1739224259369,-500.0,0.00011506,2]
[352670840,1739224259380,-270.21569674,0.00011506,2]
[352670841,1739224259393,-573.67999995,0.00011506,2]
[352670842,1739224259419,-166.99430331,0.00011506,2]
[352670843,1739224259430,-184.03981493,0.00011506,2]
[352670844,1739224260039,-414.14018507,0.00011506,2]
[352670845,1739224260050,-500.0,0.00011506,2]
[352670846,1739224260061,-778.36,0.00011506,2]
[352670847,1739224260072,-759.22,0.00011506,2]
[352670848,1739224260084,-173.31651493,0.00011506,2]
[352670849,1739224260102,-623.48348507,0.00011506,2]
[352670850,1739224260112,-310.49151493,0.00011506,2]
[352670851,1739224260125,-375.32848507,0.00011506,2]
[352670852,1739224260135,-965.77,0.00011506,2]
[352670853,1739224260146,-500.0,0.00011506,2]
[352670854,1739224260158,-24.82003939,0.00011506,2]
[352670855,1739224260170,-298.3043,0.00011506,2]
[352670856,1739224260182,-176.87566061,0.00011506,2]
[352670857,1739224260192,-1046.16,0.00011506,2]
[352670858,1739224260203,-732.26,0.00011506,2]
[352670859,1739224260214,-500.0,0.00011506,2]
[352670860,1739224260225,-500.0,0.00011506,2]
[352670861,1739224260235,-956.37,0.00011506,2]
[352670862,1739224260246,-519.53,0.00011506,2]
[352670863,1739224260257,-559.01,0.00011506,2]
[352670864,1739224260267,-900.05,0.00011506,2]
[352670865,1739224260278,-500.0,0.00011506,2]
[352670866,1739224260288,-500.0,0.00011506,2]
[352670867,1739224260298,-500.0,0.00011506,2]
[352670868,1739224260308,-156.29234502,0.00011506,2]
[352670869,1739224260333,-450.17765498,0.00011506,2]
[352670870,1739224260344,-500.0,0.00011506,2]
[352670871,1739224260354,-444.58569803,0.00011506,2]
[352670872,1739224260367,-434.49430197,0.00011506,2]
[352670873,1739224260377,-312.67634412,0.00011506,2]
[352670874,1739224260483,-303.17662,0.00011506,2]
[352670875,1739224260495,-395.87703588,0.00011506,2]
[352670876,1739224260505,-773.7,0.00011506,2]
[352670877,1739224260514,-668.08,0.00011506,2]
[352670878,1739224260524,-500.0,0.00011506,2]
[352670879,1739224260534,-455.77476486,0.00011506,2]
[352670880,1739224260543,-726.44,0.00011506,2]
[352670881,1739224260553,-1248.64,0.00011506,2]
[352670882,1739224260562,-500.0,0.00011506,2]
[352670883,1739224260571,-802.58,0.00011506,2]
[352670884,1739224260580,-517.32,0.00011506,2]
[352670885,1739224260589,-918.39,0.00011506,2]
[352670886,1739224260598,-500.0,0.00011506,2]
[352670887,1739224260608,-840.47,0.00011506,2]
[352670888,1739224260617,-500.0,0.00011506,2]
[352670889,1739224260627,-500.0,0.00011506,2]
[352670890,1739224260636,-500.0,0.00011506,2]
[352670891,1739224260645,-500.0,0.00011506,2]
[352670892,1739224260656,-178.47427192,0.00011506,2]
[352670893,1739224260665,-500.0,0.00011506,2]
[352670894,1739224260675,-590.54,0.00011506,2]
[352670895,1739224260684,-616.87,0.00011506,2]
[352670896,1739224260693,-514.99,0.00011506,2]
[352670897,1739224260702,-782.96,0.00011506,2]
[352670898,1739224260711,-737.43,0.00011506,2]
[352670899,1739224260721,-508.02,0.00011506,2]
[352670900,1739224260730,-630.68,0.00011506,2]
[352670901,1739224260739,-500.0,0.00011506,2]
[352670902,1739224260749,-924.82,0.00011506,2]
[352670903,1739224260758,-1121.97,0.00011506,2]
[352670904,1739224260767,-500.0,0.00011506,2]
[352670905,1739224260776,-500.0,0.00011506,2]
[352670906,1739224260785,-500.0,0.00011506,2]
[352670907,1739224260794,-1054.09,0.00011506,2]
[352670908,1739224260805,-2140.92,0.00011506,2]
[352670909,1739224260815,-658.41,0.00011506,2]
[352670910,1739224260824,-500.0,0.00011506,2]
[352670911,1739224261182,-2379.79,0.00011506,2]
[352670912,1739224261331,-755.05,0.00011506,2]
[352670913,1739224261364,-519.64,0.00011506,2]
[352670914,1739224261386,-500.0,0.00011506,2]
[352670915,1739224261399,-1123.32,0.00011506,2]
[352670916,1739224261410,-634.3,0.00011506,2]
[352670917,1739224261420,-1435.58,0.00011506,2]
[352670918,1739224261429,-382.07944154,0.00011506,2]
[352670919,1739224261439,-1710.5,0.00011506,2]
[352670920,1739224261448,-675.73,0.00011506,2]
[352670921,1739224261458,-630.28,0.00011506,2]
[352670922,1739224261467,-1039.21,0.00011506,2]
[352670923,1739224261477,-500.0,0.00011506,2]
[352670924,1739224261486,-588.93,0.00011506,2]
[352670925,1739224261496,-509.08,0.00011506,2]
[352670926,1739224261506,-1021.05,0.00011506,2]
[352670927,1739224261515,-1217.8,0.00011506,2]
[352670928,1739224261524,-778.47,0.00011506,2]
[352670929,1739224261533,-879.41,0.00011506,2]
[352670930,1739224261542,-863.19,0.00011506,2]
[352670931,1739224261552,-1039.43,0.00011506,2]
[352670932,1739224261561,-500.0,0.00011506,2]
[352670933,1739224261571,-2054.7,0.00011506,2]
[352670934,1739224261581,-524.25,0.00011506,2]
[352670935,1739224261591,-1323.53,0.00011506,2]
[352670936,1739224261601,-532.18,0.00011506,2]
[352670937,1739224261611,-648.52,0.00011506,2]
[352670938,1739224261620,-500.0,0.00011506,2]
[352670939,1739224261630,-565.76,0.00011506,2]
[352670940,1739224261640,-1261.7,0.00011506,2]
[352670941,1739224261649,-1026.01,0.00011506,2]
[352670942,1739224261660,-2654.78,0.00011506,2]
[352670943,1739224261670,-604.2,0.00011506,2]
[352670944,1739224261679,-1136.75,0.00011506,2]
[352670945,1739224261689,-1229.09,0.00011506,2]
[352670946,1739224261699,-720.94,0.00011506,2]
[352670947,1739224261708,-500.0,0.00011506,2]
[352670948,1739224261717,-1098.69,0.00011506,2]
[352670949,1739224261726,-969.54,0.00011506,2]
[352670950,1739224261735,-909.39,0.00011506,2]
[352670951,1739224261744,-2884.06,0.00011506,2]
[352670952,1739224261753,-500.0,0.00011506,2]
[352670953,1739224261762,-375.87404526,0.00011506,2]
[352670954,1739224261771,-1675.97,0.00011506,2]
[352670955,1739224261780,-500.0,0.00011506,2]
[352670956,1739224261790,-1262.72,0.00011506,2]
[352670957,1739224261801,-1629.18,0.00011506,2]
[352670958,1739224261811,-1021.1,0.00011506,2]
[352670959,1739224261820,-1520.76,0.00011506,2]
[352670960,1739224261829,-2746.94,0.00011506,2]
[352670961,1739224261838,-630.04,0.00011506,2]
[352670962,1739224261849,-1755.36,0.00011506,2]
[352670963,1739224261858,-1199.46,0.00011506,2]
[352670964,1739224261868,-1020.44,0.00011506,2]
[352670965,1739224261877,-1268.65,0.00011506,2]
[352670966,1739224261887,-563.26,0.00011506,2]
[352670967,1739224261897,-1033.28,0.00011506,2]
[352670968,1739224261908,-1954.3,0.00011506,2]
[352670969,1739224261917,-1294.99,0.00011506,2]
[352670970,1739224261926,-968.02,0.00011506,2]
[352670971,1739224261935,-1158.34,0.00011506,2]
[352670972,1739224261944,-2466.76,0.00011506,2]
[352670973,1739224261954,-1240.29,0.00011506,2]
[352670974,1739224261964,-1347.18,0.00011506,2]
[352670975,1739224261973,-739.42,0.00011506,2]
[352670976,1739224261982,-500.0,0.00011506,2]
[352670977,1739224261992,-1460.82,0.00011506,2]
[352670978,1739224262001,-646.49,0.00011506,2]
[352670979,1739224262010,-2218.17,0.00011506,2]
[352670980,1739224262019,-2189.11,0.00011506,2]
[352670981,1739224262029,-1188.03,0.00011506,2]
[352670982,1739224262038,-1735.43,0.00011506,2]
[352670983,1739224262048,-1793.23,0.00011506,2]
[352670984,1739224262057,-561.81,0.00011506,2]
[352670985,1739224262067,-607.13,0.00011506,2]
[352670986,1739224262076,-2379.53,0.00011506,2]
[352670987,1739224262085,-1275.33,0.00011506,2]
[352670988,1739224262094,-812.47,0.00011506,2]
[352670989,1739224262104,-1491.54,0.00011506,2]
[352670990,1739224262113,-500.0,0.00011506,2]
[352670991,1739224262122,-1725.26,0.00011506,2]
[352670992,1739224262130,-500.0,0.00011506,2]
[352670993,1739224262140,-2527.84,0.00011506,2]
[352670994,1739224262149,-636.22,0.00011506,2]
[352670995,1739224262162,-500.0,0.00011506,2]
[352670996,1739224262171,-969.78,0.00011506,2]
[352670997,1739224262180,-500.0,0.00011506,2]
[352670998,1739224262190,-1108.98,0.00011506,2]
[352670999,1739224262199,-626.99,0.00011506,2]
[352671000,1739224262208,-3746.66,0.00011506,2]
[352671001,1739224262217,-1316.73,0.00011506,2]
[352671002,1739224262226,-1807.49,0.00011506,2]
[352671003,1739224262235,-500.0,0.00011506,2]
[352671004,1739224262245,-973.15,0.00011506,2]
[352671005,1739224262255,-1034.12,0.00011506,2]
[352671006,1739224262264,-500.0,0.00011506,2]
[352671007,1739224262273,-532.3,0.00011506,2]
[352671008,1739224262282,-1664.22,0.00011506,2]
[352671009,1739224262291,-500.0,0.00011506,2]
[352671010,1739224262300,-4180.83,0.00011506,2]
[352671011,1739224262310,-872.95,0.00011506,2]
[352671012,1739224262319,-2299.6,0.00011506,2]
[352671013,1739224262328,-1716.5,0.00011506,2]
[352671014,1739224262337,-1151.56,0.00011506,2]
[352671015,1739224262346,-2119.4,0.00011506,2]
[352671016,1739224262355,-730.26,0.00011506,2]
[352671017,1739224262365,-717.76,0.00011506,2]
[352671018,1739224262375,-500.0,0.00011506,2]
[352671019,1739224262385,-706.7,0.00011506,2]
[352671020,1739224262395,-1359.57,0.00011506,2]
[352671021,1739224262407,-2516.17,0.00011506,2]
[352671022,1739224262417,-500.0,0.00011506,2]
[352671023,1739224262426,-500.0,0.00011506,2]
[352671024,1739224262435,-1295.47,0.00011506,2]
[352671025,1739224262444,-2222.43,0.00011506,2]
[352671026,1739224262453,-1109.74,0.00011506,2]
[352671027,1739224262462,-1249.68,0.00011506,2]
[352671028,1739224262472,-1808.5,0.00011506,2]
[352671029,1739224262481,-3729.93,0.00011506,2]
[352671030,1739224262491,-500.0,0.00011506,2]
[352671031,1739224262500,-745.65,0.00011506,2]
[352671032,1739224262509,-551.13,0.00011506,2]
[352671033,1739224262519,-753.98,0.00011506,2]
[352671034,1739224262528,-836.22,0.00011506,2]
[352671035,1739224262537,-1028.03,0.00011506,2]
[352671036,1739224262547,-1434.92,0.00011506,2]
[352671037,1739224262556,-735.27,0.00011506,2]
[352671038,1739224262566,-738.65,0.00011506,2]
[352671039,1739224262575,-1822.7,0.00011506,2]
[352671040,1739224262585,-517.86,0.00011506,2]
[352671041,1739224262594,-2142.93,0.00011506,2]
[352671042,1739224262603,-605.12,0.00011506,2]
[352671043,1739224262613,-1213.49,0.00011506,2]
[352671044,1739224262622,-1360.95,0.00011506,2]
[352671045,1739224262631,-500.0,0.00011506,2]
[352671046,1739224262640,-1311.97,0.00011506,2]
[352671047,1739224262649,-1666.23,0.00011506,2]
[352671048,1739224262661,-1092.68,0.00011506,2]
[352671049,1739224262670,-1361.38,0.00011506,2]
[352671050,1739224262680,-1019.17,0.00011506,2]
[352671051,1739224262690,-1625.8,0.00011506,2]
[352671052,1739224262699,-1036.68,0.00011506,2]
[352671053,1739224262709,-346.70828171,0.0001152,2]
[352671054,1739224262719,-346.70828171,0.00011523,2]
[352671055,1739224262728,-346.70828171,0.00011525,2]
[352671056,1739224262738,-200.0,0.00011526,2]
[352671057,1739224262747,-2022.4518637,0.00011534,2]
[352671058,1739224262758,-1794.70597357,0.0001154,2]
[352671059,1739224262767,-1794.70597357,0.00011544,2]
[352671060,1739224262777,-1794.70597357,0.00011547,2]
[352671061,1739224262786,-500.0,0.00011547,2]
[352671062,1739224262796,-500.0,0.00011547,2]
[352671063,1739224262808,-150.0,0.00011547,2]
[352671064,1739224262818,-787.18,0.00011547,2]
[352671065,1739224262827,-1470.52,0.00011547,2]
[352671066,1739224262836,-1529.6,0.00011547,2]
[352671067,1739224262846,-1600.09,0.00011547,2]
[352671068,1739224262858,-1272.17,0.00011547,2]
[352671069,1739224262868,-1267.14,0.00011547,2]
[352671070,1739224262879,-4013.57,0.00011547,2]
[352671071,1739224262888,-5343.57,0.00011547,2]
[352671072,1739224262898,-1368.23,0.00011547,2]
[352671073,1739224262908,-1082.65,0.00011547,2]
[352671074,1739224262918,-1006.39,0.00011547,2]
[352671075,1739224262927,-1788.33,0.00011547,2]
[352671076,1739224262938,-500.0,0.00011547,2]
[352671077,1739224262948,-839.95,0.00011547,2]
[352671078,1739224262958,-1458.05,0.00011547,2]
[352671079,1739224262967,-1681.0,0.00011547,2]
[352671080,1739224262976,-1359.46,0.00011547,2]
[352671081,1739224262986,-1298.48,0.00011547,2]
[352671082,1739224262995,-500.0,0.00011547,2]
[352671083,1739224263005,-1548.82,0.00011547,2]
[352671084,1739224263015,-1866.56,0.00011547,2]
[352671085,1739224263024,-2022.4518637,0.00011553,2]
[352671086,1739224263038,-3397.55177277,0.00011561,2]
[352671087,1739224263048,-2022.4518637,0.00011561,2]
[352671088,1739224263059,-1171.50406516,0.00011568,2]
[352671089,1739224263070,-3397.55177277,0.00011568,2]
[352671090,1739224263080,-1794.70597357,0.00011568,2]
[352671091,1739224263090,-1171.50406516,0.00011571,2]
[352671092,1739224263100,-21412.48954659,0.00011572,2]
[352671093,1739224263110,-1171.50406516,0.00011579,2]
[352671094,1739224263120,-21412.48954659,0.0001158,2]
[352671095,1739224263131,-1171.50406516,0.00011582,2]
[352671096,1739224263141,-3275.27661323,0.00011585,2]
[352671097,1739224263160,-122.27515954,0.00011585,2]
[352671098,1739224263171,-161.80849203,0.00011589,2]
[352671099,1739224263181,-3397.55177277,0.00011592,2]
[352671100,1739224263191,-346.70828171,0.00011592,2]
[352671101,1739224263201,-2022.4518637,0.00011598,2]
[352671102,1739224263211,-19961.35149402,0.00011599,2]
[352671103,1739224263223,-315.45669997,0.00011599,2]
[352671104,1739224263235,-1135.6813526,0.00011599,2]
[352671105,1739224263245,-8464.3186474,0.00011599,2]
[352671106,1739224263257,-11876.39998308,0.00011599,2]
[352671107,1739224263269,-1071.77091611,0.00011599,2]
[352671108,1739224263279,-1000.0,0.00011603,2]
[352671109,1739224263289,-150.0,0.00011631,2]
[352671110,1739224263299,-500.0,0.00011643,2]
[352671111,1739224263309,-500.0,0.00011643,2]
[352671112,1739224263319,-500.0,0.00011643,2]
[352671113,1739224263329,-500.0,0.00011643,2]
[352671114,1739224263339,-1200.0,0.00011643,2]
[352671115,1739224263349,-500.0,0.00011643,2]
[352671116,1739224263359,-607.89,0.00011643,2]
[352671117,1739224263369,-500.0,0.00011643,2]
[352671118,1739224263378,-231.12321207,0.00011643,2]
[352671119,1739224263388,-685.02,0.00011643,2]
[352671120,1739224263398,-571.4,0.00011643,2]
[352671121,1739224263409,-500.0,0.00011643,2]
[352671122,1739224263419,-395.35287235,0.00011643,2]
[352671123,1739224263988,-1000.0,0.0001017,2]
[352671124,1739224263999,-1000.0,0.00011441,2]
[352671125,1739224264008,-104.64712765,0.00011643,2]
[352671126,1739224264018,-545.72,0.00011643,2]
[352671127,1739224264028,-500.0,0.00011643,2]
[352671128,1739224264037,-500.0,0.00011643,2]
[352671129,1739224264047,-664.53,0.00011643,2]
[352671130,1739224264057,-655.36,0.00011643,2]
[352671131,1739224264067,-500.0,0.00011643,2]
[352671132,1739224264077,-500.0,0.00011643,2]
[352671133,1739224264261,-524.27,0.00011643,2]
[352671134,1739224264283,-360.65328968,0.00011643,2]
[352671135,1739224264293,-552.7,0.00011643,2]
[352671136,1739224264303,-500.0,0.00011643,2]
[352671137,1739224264312,-500.0,0.00011643,2]
[352671138,1739224264322,-529.01,0.00011643,2]
[352671139,1739224264331,-500.0,0.00011643,2]
[352671140,1739224264340,-500.0,0.00011643,2]
[352671141,1739224264350,-906.23,0.00011643,2]
[352671142,1739224264359,-500.0,0.00011643,2]
[352671143,1739224264369,-500.0,0.00011643,2]
[352671144,1739224264380,-500.0,0.00011643,2]
[352671145,1739224264390,-933.85,0.00011643,2]
[352671146,1739224264400,-500.0,0.00011643,2]
[352671147,1739224264411,-500.0,0.00011643,2]
[352671148,1739224264421,-500.0,0.00011643,2]
[352671149,1739224264430,-500.0,0.00011643,2]
[352671150,1739224264439,-500.0,0.00011643,2]
[352671151,1739224264449,-500.0,0.00011643,2]
[352671152,1739224264458,-500.0,0.00011643,2]
[352671153,1739224264467,-500.0,0.00011643,2]
[352671154,1739224264477,-500.0,0.00011643,2]
[352671155,1739224264487,-500.0,0.00011643,2]
[352671156,1739224264496,-500.0,0.00011643,2]
[352671157,1739224264506,-500.0,0.00011643,2]
[352671158,1739224264516,-500.0,0.00011643,2]
[352671159,1739224264526,-225.24165467,0.00011643,2]
[352671160,1739224264538,-274.75834533,0.00011643,2]
[352671161,1739224264547,-500.0,0.00011643,2]
[352671162,1739224264558,-500.0,0.00011643,2]
[352671163,1739224264568,-500.0,0.00011643,2]
[352671164,1739224264578,-500.0,0.00011643,2]
[352671165,1739224264588,-500.0,0.00011643,2]